Workbook

Sheet Overview
A1: Project Name: | C1: Reclaim Model - Overview of Program
B2: Lupin Mine Site 2011 | C2: All Users are urged to read the Guide for Using the Reclaim Model Spreadsheet.
C3: Note the WorkSheet tabs at the bottom of your Window.
C4: Please scroll down for more information
C5: Information covered on this worksheet:
C6: The reclaim menu
C7: What's on the various worksheets
C8: Assumptions made by the Reclaim program
A10: Reclaim Menu | C10: The default menu bar has been replaced with a menu bar specific to the Reclaim Model.
A11: Menu | B11: Dflt Menu | C11: This restores the default Excel menu bar, but with an option to return to the Reclaim menu
A12: Menu | B12: Clear | C12: This option deletes all data input, deletes any duplicated elements and blanks out the project name
A13: Menu | B13: Duplicate | C13: This option Duplicates components of the project. E.g. if there is more than one Open Pit, use duplicate to add a second Open Pit. Quantities for the new Open Pit are erased, but the Cost Codes are carried over from the original Open Pit. The new Open Pit subtotal is added to the Summary page.
A14: Menu | B14: Unit Costs | C14: This option works like a toggle to show either 1 or 2 windows. If there is only 1 window open, this option splits the screen into 2 windows and selects the Unit Costs worksheet in the bottom window. If the Unit Costs are already showing, then this option closes the active window, and maximizes the other window. Be sure to select the window you want to close before selecting this option the second time.
A15: Menu | B15: Print All | C15: This option prints the Summary Worksheet, Unit Cost Worksheet, and all the component worksheets. Individual worksheets can be printed directly using regular printing methods, such as Ctl - P.
A16: Menu | B16: Quit | C16: You can press Quit from the menu, or you can exit using regular windows methods, such as alt - F4
A17: Menu | B17: Help | C17: Displays this page.
B19: WorkSheets | C19: The reclaim model makes use of separate worksheets to organize the information.
A20: WorkSheets | C20: There are 3 overview type worksheets, followed by 1 worksheet for each component of reclamation. After the component worksheets, there is a Summary Worksheet, a list of the Unit Costs, and finally the asssumptions of the reclaim model.
B22: Title | C22: Authors, and history of revisions
B23: Conditions | C23: Conditions of use and Limitations
B24: Overview | C24: This overview page
A25: WorkSheets | B25: Components | C25: This is where the component cost information is entered. Optionally, you can edit, add, or delete activities from the components. This should be done with care as it requires that protection be disabled.
A26: WorkSheets | C26: Any worksheet can be printed individually. Use the Print All function on the menu to print all component worksheets.
C27: Please do not change the column width, or the contents of the first column on the component worksheets.
C28: The component worksheets are layed out in the following sequence. You can navigate between the worksheets by selecting the worksheet's tab, at the bottom of your screen.
B30: Open Pit, UG Mine, Tailings, Rock Pile, Bldgs & Equip, Chemicals, Water, Mobilization, Monitor, Post Closure, Ongoing Water
A32: WorkSheets | B32: Summary | C32: This contains the cost for each component, and the ongoing Post Closure costs. The model sums all the reclamation costs and presents the totals according to component type in the Reclamation Cost Summary table. Capital costs are presented separately from ongoing costs, such as monitoring, maintenance and water treatment. NOTE: The Summary sheet will show "#Div/0!" until values are entered on the work sheets. This is normal.
B33: Unit Costs | C33: This contains the look up table with costs for typical work
B34: Limitations | C34: The last Worksheet lists the assumptions of the Reclaim program. To quickly access this sheet, press the >| tab navigator button.

Sheet Summary
B1: SUMMARY OF COSTS
A2: Capital Costs
A3: COMPONENT TYPE | B3: COMPONENT NAME | E3: TOTAL COST
A4: OPEN PIT | B4: ='Open Pit'!Pit1Name -> 0 | E4: =Pit1Total -> 0
A5: UNDERGROUND MINE | B5: =UG1Name -> 0 | E5: =UG1Total -> 404115.7775
A6: TAILINGS | B6: =Tailings1Name -> 0 | E6: =Tailings1Total -> 2563155
A7: ROCK PILE | B7: =RP1Name -> 0 | E7: =RP1Total -> 0
A8: BUILDINGS AND EQUIPMENT | B8: =Bldg1Name -> 0 | E8: =Bldg1Total -> 5960318.556
A9: CHEMICALS AND SOIL MANAGEMENT | B9: =Chem1Name -> 0 | E9: =Chem1Total -> 501545.625
A10: WATER MANAGEMENT | B10: =Water1Name -> 0 | E10: =Water1Total -> 0
A11: POST-CLOSURE SITE MAINTENANCE | E11: =PC1Total -> 0
A13: SUBTOTAL | E13: =SUM(E4:E12) -> 9429134.958
E14: Percentages
A15: MOBILIZATION/DEMOBILIZATION/FUEL | B15: =Mob1Name -> 0 | E15: =Mob1Total -> 5533533.001
A16: MONITORING AND MAINTENANCE | B16: =Mon1Name -> 0 | E16: =Mon1Total -> 1260000.01
A19: PROJECT MANAGEMENT | B19: 4 | C19: % | E19: =B19/100*E13 -> 377165.3983
A21: ENGINEERING | B21: 4 | C21: % | E21: =B21/100*E13 -> 377165.3983
A23: CONTINGENCY | B23: 10 | C23: % | E23: =B23/100*E13 -> 942913.4958
A25: GRAND TOTAL - CAPITAL COSTS | E25: =E13+E15+E16+E19+E21+E23 -> 17919912.26

Sheet Open Pit
A1: 1 | B1: Open Pit Name: | E1: Pit # | F1: 1
B3: ACTIVITY/MATERIAL | C3: Units | D3: Quantity | E3: Cost Code | F3: Unit Cost | G3: Cost
A4: A | B4: OBJECTIVE: CONTROL ACCESS
B5: Fence | C5: m | E5: =NA() ->  | F5: =IF(ISNA(E5),0,INDEX(IF(UPPER(RIGHT(E5,1))=Low,UnitCostLow, IF(UPPER(RIGHT(E5,1))=High,UnitCostHigh,UnitCostSpecified)),MATCH(UPPER(LEFT(E5,LEN(E5)-1)),CostCode,0))) -> 0 | G5: =F5*D5 -> 0
A6: . | B6: Signs | C6: each | E6: =NA() ->  | F6: 0 | G6: 0
A7: . | B7: Berm | C7: m3 | E7: =NA() ->  | F7: 0 | G7: 0
A8: . | B8: Block roads | C8: m3 | E8: =NA() ->  | F8: 0 | G8: 0
A9: . | B9: Other | E9: =NA() ->  | G9: 0
A10: B | B10: OBJECTIVE: STABILIZE SLOPES
A11: . | B11: Off-load crest, soil A | C11: m3 | E11: =NA() ->  | F11: 0 | G11: 0
A12: . | B12: Off-load crest, soil B | C12: m3 | E12: =NA() ->  | F12: 0 | G12: 0
A13: . | B13: Doze/trimoverburden at crest | C13: m3 | E13: =NA() ->  | F13: 0 | G13: 0
B14: Drill & blast pit crest | C14: m3 | E14: =NA() ->  | F14: 0 | G14: 0
A15: . | B15: buttress slope | C15: m3 | E15: =NA() ->  | F15: 0 | G15: 0
A16: . | B16: Other | E16: =NA() ->  | F16: 0 | G16: 0
A17: C | B17: OBJECTIVE: COVER/CONTOUR SLOPES
A18: . | B18: Place fill, soil A | C18: m3 | E18: =NA() ->  | F18: 0 | G18: 0
B19: Place fill, soil B | C19: m3 | E19: =NA() ->  | F19: 0 | G19: 0
A20: . | B20: Rip rap | C20: m3 | E20: =NA() ->  | F20: 0 | G20: 0
A21: . | B21: Vegetate slopes | C21: ha | E21: =NA() ->  | F21: 0 | G21: 0
B22: Vegetate pit floor | C22: ha | E22: =NA() ->  | F22: 0 | G22: 0
A23: . | B23: Other | E23: =NA() ->  | F23: 0 | G23: 0
A24: . | B24: OBJECTIVE: SPILLWAY
A25: . | B25: Excavate channel, soil A | C25: m3 | E25: =NA() ->  | F25: 0 | G25: 0
A26: . | B26: Excavate channel, soil B | C26: m3 | E26: =NA() ->  | F26: 0 | G26: 0
A27: . | B27: Concrete | C27: m3 | E27: =NA() ->  | F27: 0 | G27: 0
A28: . | B28: Rip rap | C28: m3 | E28: =NA() ->  | F28: 0 | G28: 0
A29: . | B29: Other | E29: =NA() ->  | F29: 0 | G29: 0
A30: E | B30: OBJECTIVE: FLOOD PIT
A31: . | B31: Embankment, soil A | C31: m3 | E31: =NA() ->  | F31: 0 | G31: =F31*D31 -> 0
A32: . | B32: Embankment, soil B | C32: m3 | E32: =NA() ->  | F32: 0 | G32: 0
A33: . | B33: Remove pipes etc. | C33: each | E33: =NA() ->  | F33: 0 | G33: 0
B34: Remove power lines | C34: each | E34: =NA() -> 
A35: . | B35: LIme addition, kg/m3 of water | C35: tonne | E35: =NA() ->  | F35: 0 | G35: 0
A36: . | B36: Lime, purchase and shipping | C36: tonne | E36: =NA() ->  | F36: 0 | G36: 0
A37: . | B37: Other | C37: tonne | E37: =NA() ->  | F37: 0 | G37: 0
A38: F | B38: RECLAIM QUARRIES
A39: . | B39: Contour slopes | C39: m3 | E39: =NA() ->  | F39: 0 | G39: =F39*D39 -> 0
A40: . | B40: Berm at crest | C40: m3 | E40: =NA() ->  | F40: 0 | G40: =F40*D40 -> 0
B41: Place overburder | C41: m3 | E41: =NA() ->  | F41: 0 | G41: =F41*D41 -> 0
A42: . | B42: Vegetate | C42: m3 | E42: =NA() ->  | F42: 0 | G42: =F42*D42 -> 0
A43: H | B43: OTHER ITEMS
A44: . | E44: =NA() ->  | F44: 0 | G44: 0
B45: Subtotal | G45: =SUM(G5:G44) -> 0
G46: Total Pits

Sheet UG Mine
A1: 1 | B1: Underground Mine Name | E1: UG Mine # | F1: 1
B3: ACTIVITY/MATERIAL | C3: Units | D3: Quantity | E3: Cost Code | F3: Unit Cost | G3: Cost
A4: A | B4: OBJECTIVE: CONTROL ACCESS
B5: Fence | C5: m | E5: =NA() ->  | F5: =IF(ISNA(E5),0,INDEX(IF(UPPER(RIGHT(E5,1))=Low,UnitCostLow, IF(UPPER(RIGHT(E5,1))=High,UnitCostHigh,UnitCostSpecified)),MATCH(UPPER(LEFT(E5,LEN(E5)-1)),CostCode,0))) -> 0 | G5: =F5*D5 -> 0
A6: . | B6: Signs | C6: each | E6: =NA() ->  | F6: 0 | G6: 0
A7: . | B7: Ditch, mat'l A | C7: m3 | E7: =NA() ->  | F7: =IF(ISNA(E7),0,INDEX(IF(UPPER(RIGHT(E7,1))=Low,UnitCostLow, IF(UPPER(RIGHT(E7,1))=High,UnitCostHigh,UnitCostSpecified)),MATCH(UPPER(LEFT(E7,LEN(E7)-1)),CostCode,0))) -> 0 | G7: =F7*D7 -> 0
A8: . | B8: , mat'l B | C8: m3 | E8: =NA() ->  | F8: =IF(ISNA(E8),0,INDEX(IF(UPPER(RIGHT(E8,1))=Low,UnitCostLow, IF(UPPER(RIGHT(E8,1))=High,UnitCostHigh,UnitCostSpecified)),MATCH(UPPER(LEFT(E8,LEN(E8)-1)),CostCode,0))) -> 0 | G8: =F8*D8 -> 0
A9: . | B9: Berm | C9: m3 | E9: =NA() ->  | F9: 0 | G9: 0
A10: . | B10: Block adits | C10: m3 | E10: =NA() ->  | F10: 0 | G10: 0
A11: . | B11: Cap shaft - 5 | C11: each | D11: 5 | E11: SRS | F11: =(IF(ISNA(E11),0,INDEX(IF(UPPER(RIGHT(E11,1))=Low,UnitCostLow, IF(UPPER(RIGHT(E11,1))=High,UnitCostHigh,UnitCostSpecified)),MATCH(UPPER(LEFT(E11,LEN(E11)-1)),CostCode,0)))*1.05)*1.03 -> 80823.15549 | G11: =F11*D11 -> 404115.7775
A12: . | B12: Cap raise #1 | C12: m3 | E12: =NA() ->  | F12: 0 | G12: 0
A13: . | B13: Cap raise #2 | C13: m3 | E13: =NA() ->  | F13: 0 | G13: 0
A14: . | B14: Backfill adits | C14: m3 | E14: =NA() ->  | F14: 0 | G14: 0
A15: . | B15: Backfill shaft | C15: m3 | E15: =NA() ->  | F15: 0 | G15: 0
A16: . | B16: Backfill raise #1 | C16: m3 | E16: =NA() ->  | F16: 0 | G16: 0
A17: . | B17: Backfill raise #2 | C17: m3 | E17: =NA() ->  | F17: 0 | G17: 0
A18: . | B18: Backfill open stopes | C18: m3 | E18: =NA() ->  | F18: 0 | G18: 0
A19: . | B19: Other | E19: =NA() ->  | F19: 0 | G19: 0
A20: B | B20: OBJECTIVE: STABILIZE GROUND SURFACE
A21: . | B21: Backfill mine | C21: m3 | E21: =NA() ->  | F21: 0 | G21: 0
A22: . | B22: Collapse crown pillar | C22: m3 | E22: =NA() ->  | F22: 0 | G22: 0
A23: . | B23: Contour, mat'l A | C23: m3 | E23: =NA() ->  | F23: 0 | G23: 0
A24: . | B24: , mat'l B | C24: m3 | E24: =NA() ->  | F24: 0 | G24: 0
A25: . | B25: Maintain dewatering (see "MONITORING/MAINTENANCE" costing component) | E25: =NA() ->  | F25: 0 | G25: 0
A26: . | B26: Other | E26: =NA() ->  | F26: 0 | G26: 0
A27: C | B27: OBJECTIVE: FLOOD MINE
A28: . | B28: Plug adits | C28: m3 | E28: =NA() ->  | F28: 0 | G28: 0
A29: . | B29: Plug drillholes to surface | C29: each | E29: =NA() ->  | F29: 0 | G29: 0
A30: . | B30: Grouting | C30: m3 | E30: =NA() ->  | F30: 0 | G30: =F30*D30 -> 0
A31: . | B31: LIme addition, kg/m3 of water | C31: tonne | E31: =NA() ->  | F31: 0 | G31: 0
A32: . | B32: Lime, purchase and shipping | C32: tonne | E32: =NA() ->  | F32: 0 | G32: 0
A33: D | B33: OBJECTIVE: HAZARDOUS MATERIALS
A34: . | B34: remove hazardous materials | C34: each | E34: =NA() ->  | F34: 0
A35: . | B35: remove/decontam. equipment | C35: each | E35: =NA() ->  | F35: 0 | G35: 0
A36: . | B36: Other | E36: =NA() ->  | F36: 0 | G36: 0
A37: E | B37: SPECIALIZED ITEMS
A38: . | E38: =NA() ->  | F38: 0 | G38: 0
B39: Subtotal | G39: =SUM(G5:G38) -> 404115.7775
G40: Total U/G

Sheet Tailings
A1: 1 | B1: Tailings Impoundment Name: | E1: Impoundment # | F1: 1
B3: ACTIVITY/MATERIAL | C3: Units | D3: Quantity | E3: Cost Code | F3: Unit Cost | G3: Cost
A4: A | B4: OBJECTIVE: CONTROL ACCESS
B5: Fence | C5: m | E5: =NA() ->  | F5: =IF(ISNA(E5),0,INDEX(IF(UPPER(RIGHT(E5,1))=Low,UnitCostLow, IF(UPPER(RIGHT(E5,1))=High,UnitCostHigh,UnitCostSpecified)),MATCH(UPPER(LEFT(E5,LEN(E5)-1)),CostCode,0))) -> 0 | G5: =F5*D5 -> 0
A6: . | B6: Signs | C6: each | E6: =NA() ->  | F6: 0 | G6: 0
A7: . | B7: Ditch, mat'l A | C7: m3 | E7: =NA() ->  | F7: 0 | G7: 0
A8: . | B8: , mat'l B | C8: m3 | E8: =NA() ->  | F8: 0 | G8: 0
A9: . | B9: Berm | C9: m3 | E9: =NA() ->  | F9: 0 | G9: 0
A10: . | B10: Block roads | C10: m3 | E10: =NA() ->  | F10: 0 | G10: 0
A11: . | B11: Other | E11: =NA() ->  | F11: 0 | G11: =F11*D11 -> 0
A12: B | B12: OBJECTIVE: STABILIZE EMBANKMENT
A13: . | B13: Toe buttress, drain mat'l | C13: m3 | E13: =NA() ->  | F13: 0 | G13: 0
A14: . | B14: , fill mat'l A | C14: m3 | E14: =NA() ->  | F14: 0 | G14: 0
A15: . | B15: , fill mat'l B | C15: m3 | E15: =NA() ->  | F15: 0 | G15: 0
A16: . | B16: Rip rap | C16: m3 | E16: =NA() ->  | F16: 0 | G16: 0
A17: . | B17: Vegetate | C17: ha | E17: =NA() ->  | F17: 0 | G17: 0
A18: . | B18: Raise crest | C18: m3 | E18: =NA() ->  | F18: 0 | G18: 0
A19: . | B19: Flatten slopes | C19: m3 | E19: =NA() ->  | F19: 0 | G19: 0
A20: . | B20: Other | E20: =NA() ->  | F20: 0 | G20: 0
A21: C | B21: OBJECTIVE: COVER TAILINGS
A22: . | B22: Soil cover | C22: m3 | D22: 375000 | E22: SB2S | F22: =(IF(ISNA(E22),0,INDEX(IF(UPPER(RIGHT(E22,1))=Low,UnitCostLow,IF(UPPER(RIGHT(E22,1))=High,UnitCostHigh,UnitCostSpecified)),MATCH(UPPER(LEFT(E22,LEN(E22)-1)),CostCode,0)))*1.05)*1.03 -> 6.83508 | G22: 2563155
A23: . | B23: Rip rap | C23: m3 | E23: =NA() ->  | F23: 0 | G23: 0
A24: . | B24: Vegetate | C24: ha | E24: =NA() ->  | F24: 0 | G24: 0
A25: . | B25: Other | E25: =NA() ->  | F25: 0 | G25: 0
A26: D | B26: OBJECTIVE: FLOOD TAILINGS
A27: . | B27: Ditch, mat'l A | C27: m3 | E27: =NA() ->  | F27: 0 | G27: 0
A28: . | B28: , mat'l B | C28: m3 | E28: =NA() ->  | F28: 0 | G28: 0
A29: . | B29: Raise crest | C29: m3 | E29: =NA() ->  | F29: 0 | G29: 0
A30: . | B30: Other | E30: =NA() ->  | F30: 0 | G30: =F30*D30 -> 0
A31: E | B31: OBJECTIVE: TREAT SUPERNATANT
A32: . | B32: Pump water | C32: m3 | E32: =NA() ->  | F32: 0 | G32: 0
A33: . | B33: Supply reagents | C33: tonne | E33: =NA() ->  | F33: 0 | G33: 0
A34: . | B34: Operate treatment plant | C34: m3 | E34: =NA() ->  | F34: 0
A35: . | B35: Other | E35: =NA() ->  | F35: 0 | G35: 0
A36: F | B36: OBJECTIVE: UPGRADE SPILLWAY
A37: . | B37: Excavate channel, mat'l A | C37: m3 | E37: =NA() ->  | F37: 0 | G37: 0
A38: . | B38: , mat'l B | C38: m3 | E38: =NA() ->  | F38: 0 | G38: 0
A39: . | B39: Concrete | C39: m3 | E39: =NA() ->  | F39: 0 | G39: =F39*D39 -> 0
A40: . | B40: Rip rap | C40: m3 | E40: =NA() ->  | F40: 0 | G40: 0
A41: . | B41: Other | E41: =NA() ->  | F41: 0 | G41: 0
A42: G | B42: OBJECTIVE: STABILIZE DECANT SYSTEM
A43: . | B43: Remove | C43: m3 | E43: =NA() ->  | F43: 0 | G43: 0
A44: . | B44: Plug/backfill | C44: m3 | E44: =NA() ->  | F44: 0 | G44: 0
A45: . | B45: Other | E45: =NA() ->  | F45: 0 | G45: 0
A46: H | B46: OBJECTIVE: REMOVE TAILINGS DISCHARGE
A47: . | B47: Cyclones | C47: m3 | E47: =NA() ->  | F47: 0 | G47: =F47*D47 -> 0
A48: . | B48: Pipe | C48: m3 | E48: =NA() ->  | F48: 0 | G48: =F48*D48 -> 0
A49: . | B49: Other | E49: =NA() ->  | F49: 0 | G49: =F49*D49 -> 0
A50: I | B50: SPECIALIZED ITEMS
A51: . | E51: =NA() ->  | F51: 0 | G51: =F51*D51 -> 0
B52: Subtotal | G52: =SUM(G5:G51) -> 2563155
G53: Total Tailings

Sheet Rock Pile
A1: 1 | B1: Rock Pile Name: | E1: Rock Pile #: | F1: 1
B3: ACTIVITY/MATERIAL | C3: Units | D3: Quantity | E3: Cost Code | F3: Unit Cost | G3: Cost
A4: A | B4: OBJECTIVE: STABILIZE SLOPES
B5: Flatten slopes with dozer | C5: m3 | E5: =NA() ->  | F5: =IF(ISNA(E5),0,INDEX(IF(UPPER(RIGHT(E5,1))=Low,UnitCostLow, IF(UPPER(RIGHT(E5,1))=High,UnitCostHigh,UnitCostSpecified)),MATCH(UPPER(LEFT(E5,LEN(E5)-1)),CostCode,0))) -> 0 | G5: =F5*D5 -> 0
A6: . | B6: Divert runon, ditch mat'l A | C6: m3 | E6: =NA() ->  | F6: =IF(ISNA(E6),0,INDEX(IF(UPPER(RIGHT(E6,1))=Low,UnitCostLow, IF(UPPER(RIGHT(E6,1))=High,UnitCostHigh,UnitCostSpecified)),MATCH(UPPER(LEFT(E6,LEN(E6)-1)),CostCode,0))) -> 0 | G6: 0
A7: . | B7: , ditch mat'l B | C7: m3 | E7: =NA() ->  | F7: 0 | G7: 0
A8: . | B8: Toe buttress, drain mat'l | C8: m3 | E8: =NA() ->  | F8: 0 | G8: 0
A9: . | B9: , fill mat'l A | C9: m3 | E9: =NA() ->  | F9: 0 | G9: 0
A10: . | B10: , fill mat'l B | C10: m3 | E10: =NA() ->  | F10: 0 | G10: 0
A11: . | B11: Other | E11: =NA() ->  | F11: 0 | G11: =F11*D11 -> 0
A12: B | B12: OBJECTIVE: COVER DUMP
A13: . | B13: Mat'l A | C13: m3 | E13: =NA() ->  | F13: 0 | G13: 0
A14: . | B14: Mat'l B | C14: m3 | E14: =NA() ->  | F14: 0 | G14: 0
A15: . | B15: Rip rap | C15: m3 | E15: =NA() ->  | F15: 0 | G15: 0
A16: . | B16: Vegetate | C16: ha | E16: =NA() ->  | F16: 0 | G16: 0
A17: . | B17: Other | E17: =NA() ->  | F17: 0 | G17: 0
A18: C | B18: OBJECTIVE: RELOCATE DUMPS
A19: . | B19: Load, haul, dump or doze | C19: m3 | E19: =NA() ->  | F19: 0 | G19: 0
A20: . | B20: Add lime | C20: tonne | E20: =NA() ->  | F20: 0 | G20: 0
A21: . | B21: Contour reclaimed area | C21: ha | E21: =NA() ->  | F21: 0 | G21: 0
A22: . | B22: Other | E22: =NA() ->  | F22: 0 | G22: 0
A23: D | B23: OBJECTIVE: COLLECT AND TREAT
A24: . | B24: See "ONGOING TREATMENT" costing component | E24: =NA() ->  | F24: 0 | G24: 0
A25: E | B25: OBJECTIVE: DEVELOP WETLAND
A26: . | B26: Earthworks, mat'l A | C26: m3 | E26: =NA() ->  | F26: 0 | G26: 0
A27: . | B27: , mat'l B | C27: m3 | E27: =NA() ->  | F27: 0 | G27: 0
A28: . | B28: Vegetate | C28: ha | E28: =NA() ->  | F28: 0 | G28: 0
A29: . | B29: Other | E29: =NA() ->  | F29: 0 | G29: 0
A30: F | B30: SPECIALIZED ITEMS
A31: . | E31: =NA() ->  | F31: 0 | G31: 0
E32: =NA() ->  | F32: 0 | G32: 0
B33: Subtotal | G33: =SUM(G5:G32) -> 0
G34: Total for Rock Pile

Sheet Bldgs & Equip
A1: 1 | B1: Building / Equip Name: | E1: Bldg / Equip #: | F1: 1
B3: ACTIVITY/MATERIAL | C3: Units | D3: Quantity | E3: Cost Code | F3: Unit Cost | G3: Cost
A4: A | B4: OBJECTIVE: DISPOSE MOBILE EQUIPMENT
B5: Decontaminate and ship off-site | C5: each | E5: =NA() ->  | F5: =IF(ISNA(E5),0,INDEX(IF(UPPER(RIGHT(E5,1))=Low,UnitCostLow, IF(UPPER(RIGHT(E5,1))=High,UnitCostHigh,UnitCostSpecified)),MATCH(UPPER(LEFT(E5,LEN(E5)-1)),CostCode,0))) -> 0 | G5: =F5*D5 -> 0
A6: . | B6: Decontaminate, dispose on-site | C6: each | E6: =NA() ->  | F6: =IF(ISNA(E6),0,INDEX(IF(UPPER(RIGHT(E6,1))=Low,UnitCostLow, IF(UPPER(RIGHT(E6,1))=High,UnitCostHigh,UnitCostSpecified)),MATCH(UPPER(LEFT(E6,LEN(E6)-1)),CostCode,0))) -> 0 | G6: 0
A7: . | B7: Other | C7: each | E7: =NA() ->  | F7: =IF(ISNA(E7),0,INDEX(IF(UPPER(RIGHT(E7,1))=Low,UnitCostLow, IF(UPPER(RIGHT(E7,1))=High,UnitCostHigh,UnitCostSpecified)),MATCH(UPPER(LEFT(E7,LEN(E7)-1)),CostCode,0))) -> 0 | G7: 0
A8: B | B8: OBJECTIVE: DISPOSE STATIONARY EQUIPMENT
A9: . | B9: Decontaminate and ship off-site | C9: each | E9: =NA() ->  | F9: =IF(ISNA(E9),0,INDEX(IF(UPPER(RIGHT(E9,1))=Low,UnitCostLow, IF(UPPER(RIGHT(E9,1))=High,UnitCostHigh,UnitCostSpecified)),MATCH(UPPER(LEFT(E9,LEN(E9)-1)),CostCode,0))) -> 0 | G9: 0
A10: . | B10: Decontaminate, dispose on-site | C10: each | E10: =NA() ->  | F10: =IF(ISNA(E10),0,INDEX(IF(UPPER(RIGHT(E10,1))=Low,UnitCostLow, IF(UPPER(RIGHT(E10,1))=High,UnitCostHigh,UnitCostSpecified)),MATCH(UPPER(LEFT(E10,LEN(E10)-1)),CostCode,0))) -> 0 | G10: 0
A11: . | B11: Other | C11: each | E11: =NA() ->  | F11: =IF(ISNA(E11),0,INDEX(IF(UPPER(RIGHT(E11,1))=Low,UnitCostLow, IF(UPPER(RIGHT(E11,1))=High,UnitCostHigh,UnitCostSpecified)),MATCH(UPPER(LEFT(E11,LEN(E11)-1)),CostCode,0))) -> 0 | G11: 0
A12: C | B12: OBJECTIVE: DISPOSE ORE CONCENTRATION EQUIPMENT
A13: . | B13: Decontaminate crushing plant | C13: each | E13: =NA() ->  | F13: =IF(ISNA(E13),0,INDEX(IF(UPPER(RIGHT(E13,1))=Low,UnitCostLow, IF(UPPER(RIGHT(E13,1))=High,UnitCostHigh,UnitCostSpecified)),MATCH(UPPER(LEFT(E13,LEN(E13)-1)),CostCode,0))) -> 0 | G13: 0
A14: . | B14: Decontaminate tanks & plumb. | C14: each | E14: =NA() ->  | F14: =IF(ISNA(E14),0,INDEX(IF(UPPER(RIGHT(E14,1))=Low,UnitCostLow, IF(UPPER(RIGHT(E14,1))=High,UnitCostHigh,UnitCostSpecified)),MATCH(UPPER(LEFT(E14,LEN(E14)-1)),CostCode,0))) -> 0 | G14: 0
A15: . | B15: Remove tanks & plumbing | C15: each | E15: =NA() ->  | F15: =IF(ISNA(E15),0,INDEX(IF(UPPER(RIGHT(E15,1))=Low,UnitCostLow, IF(UPPER(RIGHT(E15,1))=High,UnitCostHigh,UnitCostSpecified)),MATCH(UPPER(LEFT(E15,LEN(E15)-1)),CostCode,0))) -> 0 | G15: 0
A16: . | B16: Other | E16: =NA() ->  | F16: =IF(ISNA(E16),0,INDEX(IF(UPPER(RIGHT(E16,1))=Low,UnitCostLow, IF(UPPER(RIGHT(E16,1))=High,UnitCostHigh,UnitCostSpecified)),MATCH(UPPER(LEFT(E16,LEN(E16)-1)),CostCode,0))) -> 0 | G16: 0
A17: D | B17: OBJECTIVE: DISPOSE WATER TREATMENT EQUIPMENT
A18: . | B18: Decontaminate tanks & plumb. | C18: each | E18: =NA() ->  | F18: =IF(ISNA(E18),0,INDEX(IF(UPPER(RIGHT(E18,1))=Low,UnitCostLow, IF(UPPER(RIGHT(E18,1))=High,UnitCostHigh,UnitCostSpecified)),MATCH(UPPER(LEFT(E18,LEN(E18)-1)),CostCode,0))) -> 0 | G18: 0
A19: . | B19: Remove tanks & plumbing | C19: each | E19: =NA() ->  | F19: =IF(ISNA(E19),0,INDEX(IF(UPPER(RIGHT(E19,1))=Low,UnitCostLow, IF(UPPER(RIGHT(E19,1))=High,UnitCostHigh,UnitCostSpecified)),MATCH(UPPER(LEFT(E19,LEN(E19)-1)),CostCode,0))) -> 0 | G19: 0
A20: . | B20: Other | E20: =NA() ->  | F20: =IF(ISNA(E20),0,INDEX(IF(UPPER(RIGHT(E20,1))=Low,UnitCostLow, IF(UPPER(RIGHT(E20,1))=High,UnitCostHigh,UnitCostSpecified)),MATCH(UPPER(LEFT(E20,LEN(E20)-1)),CostCode,0))) -> 0 | G20: 0
A21: E | B21: OBJECTIVE: DECONTAMINATE BUILDINGS & TANKS
A22: . | B22: Process plant, chemicals | C22: each | E22: =NA() ->  | F22: =IF(ISNA(E22),0,INDEX(IF(UPPER(RIGHT(E22,1))=Low,UnitCostLow, IF(UPPER(RIGHT(E22,1))=High,UnitCostHigh,UnitCostSpecified)),MATCH(UPPER(LEFT(E22,LEN(E22)-1)),CostCode,0))) -> 0 | G22: 0
A23: . | B23: Maintenance plant, chemicals | C23: each | E23: =NA() ->  | F23: 0 | G23: 0
A24: . | B24: Camp | C24: each | E24: =NA() ->  | F24: 0 | G24: 0
A25: . | B25: Bulk fuel storage | C25: each | E25: =NA() ->  | F25: 0 | G25: 0
A26: . | B26: Power plant | C26: each | E26: =NA() ->  | F26: 0 | G26: 0
A27: . | B27: Explosives plant | C27: each | E27: =NA() ->  | F27: 0 | G27: 0
A28: F | B28: OBJECTIVE: MOTHBALL BUILDINGS
A29: . | B29: Sleepers and Offices | C29: m2 | D29: 7329 | E29: BRS1S | F29: =(IF(ISNA(E29),0,INDEX(IF(UPPER(RIGHT(E29,1))=Low,UnitCostLow, IF(UPPER(RIGHT(E29,1))=High,UnitCostHigh,UnitCostSpecified)),MATCH(UPPER(LEFT(E29,LEN(E29)-1)),CostCode,0)))*1.05)*1.03 -> 135.79314 | G29: 995227.9231
A30: . | B30: Hoist Room and Travel Ways | C30: m2 | D30: 463 | E30: BRS1S | F30: 135.79314 | G30: 62872.22382
A31: . | B31: Shaft House | C31: m2 | D31: 1253 | E31: BRS1S | F31: 135.79314 | G31: 170148.8044
A32: . | B32: Warehouse | C32: m2 | D32: 4671 | E32: BRS1S | F32: 135.79314 | G32: 634289.7569
A33: . | B33: Mill | C33: m2 | D33: 2864 | E33: BRS1S | F33: 135.79314 | G33: 388911.553
A34: . | B34: Powerhouse | C34: m2 | D34: 1645 | E34: BRS1S | F34: 135.79314 | G34: 223379.7153
A35: . | B35: Headframe | C35: m2 | D35: 413 | E35: BRS1S | F35: 135.79314 | G35: 56082.56682
A36: . | B36: Airlock Building and Freshair Intake | C36: m2 | D36: 366 | E36: BRS1S | F36: 135.79314 | G36: 49700.28924
A37: . | B37: Pastefill Plant | C37: m2 | D37: 316 | E37: BRS1S | F37: 135.79314 | G37: 42910.63224
A38: . | B38: Cold Storage 2 buildings | C38: m2 | D38: 1855 | E38: BRS1S | F38: 135.79314 | G38: 251896.2747
A39: . | B39: Surface Mobile Shop | C39: m2 | D39: 1008 | E39: BRS1S | F39: 135.79314 | G39: 136879.4851
A40: . | B40: Carpenter Shop | C40: m2 | D40: 482 | E40: BRS1S | F40: 135.79314 | G40: 65452.29348
A41: . | B41: As Treatment Plant Building | C41: m2 | D41: 177 | E41: BRS1S | F41: 135.79314 | G41: 24035.38578
A42: . | B42: Pumphouse | C42: m2 | D42: 74 | E42: BRS1S | F42: 135.79314 | G42: 10048.69236
A43: . | B43: Explosives Storage | C43: m2 | D43: 412 | E43: BRS1S | F43: 135.79314 | G43: 55946.77368
A44: . | B44: Fire house | C44: m2 | D44: 31 | E44: BRS1S | F44: 135.79314 | G44: 4209.58734
A45: . | B45: Emergency Power House | C45: m2 | D45: 117 | E45: BRS1S | F45: 135.79314 | G45: 15887.79738
A46: . | B46: Weather Station and Storage Buildings | C46: m2 | D46: 566 | E46: BRS1S | F46: 135.79314 | G46: 76858.91724
A47: . | B47: Shop | C47: m2 | D47: 379 | E47: BRS1S | F47: 135.79314 | G47: 51465.60006
A48: . | B48: Batch Plant | C48: m2 | D48: 118 | E48: BRS1S | F48: 135.79314 | G48: 16023.59052
A49: . | B49: ATV Building | C49: m2 | D49: 172 | E49: BRS1S | F49: 135.79314 | G49: 23356.42008
A50: I | B50: OBJECTIVE:REMOVE TANKS /PIPES
A51: . | B51: 3 - 360,000 gallon tanks | C51: m3 | D51: 4098 | E51: BRS2S | F51: =(IF(ISNA(E51),0,INDEX(IF(UPPER(RIGHT(E51,1))=Low,UnitCostLow, IF(UPPER(RIGHT(E51,1))=High,UnitCostHigh,UnitCostSpecified)),MATCH(UPPER(LEFT(E51,LEN(E51)-1)),CostCode,0)))*1.05)*1.03 -> 24.07419 | G51: 98656.03062
A52: . | B52: 7 - 350,000 gallon tanks | C52: m3 | D52: 9275 | E52: BRS2S | F52: 24.07419 | G52: 223288.1123
A53: . | B53: 3 - 187,000 gallon tanks | C53: m3 | D53: 2124 | E53: BRS2S | F53: 24.07419 | G53: =F53*D53 -> 51133.57956
A54: . | B54: 6- 14,000 gallon tanks | C54: m3 | D54: 318 | E54: BRS2S | F54: 24.07419 | G54: =F54*D54 -> 7655.59242
A55: . | B55: 11 - 20,000 gallon tank | C55: m3 | D55: 825 | E55: BRS2S | F55: 24.07419 | G55: 19861.20675
A56: . | B56: 2- 5,000 gallon tanks | C56: m3 | D56: 19 | E56: BRS2S | F56: 24.07419 | G56: 457.40961
A57: . | B57: Piping | C57: m | D57: 1000 | E57: PPLS | F57: 54.09663 | G57: 54096.63
A58: J | B58: OBJECTIVE: LANDFILL FOR DEMOLITION WASTE
A59: . | B59: Isolate Buildings (waste,water,glycol,sewer) | C59: m2 | D59: 24562 | E59: BDCS | F59: =(IF(ISNA(E59),0,INDEX(IF(UPPER(RIGHT(E59,1))=Low,UnitCostLow, IF(UPPER(RIGHT(E59,1))=High,UnitCostHigh,UnitCostSpecified)),MATCH(UPPER(LEFT(E59,LEN(E59)-1)),CostCode,0)))*1.05)*1.03 -> 11.91813 | G59: 292733.1091
A60: . | B60: Bone Yard Clean Up | D60: 1 | E60: =NA() ->  | F60: =(252048*1.05)*1.03 -> 272589.912 | G60: 272589.912
A61: . | B61: Operation of Landfill | D61: 1 | E61: =NA() ->  | F61: =(262336*1.05)*1.03 -> 283716.384 | G61: 283716.384
A62: K | B62: OBJECTIVE: GRADE AND CONTOUR
A63: . | B63: Grade/Contour Entire Mine Site Area | C63: m2 | D63: 230000 | E63: SB2L | F63: =(IF(ISNA(E63),0,INDEX(IF(UPPER(RIGHT(E63,1))=Low,UnitCostLow,IF(UPPER(RIGHT(E63,1))=High,UnitCostHigh,UnitCostSpecified)),MATCH(UPPER(LEFT(E63,LEN(E63)-1)),CostCode,0)))*1.05)*1.03 -> 4.655176155 | G63: 1070690.516
A64: . | B64: Place soil cover | C64: m3 | E64: =NA() ->  | F64: =IF(ISNA(E64),0,INDEX(IF(UPPER(RIGHT(E64,1))=Low,UnitCostLow, IF(UPPER(RIGHT(E64,1))=High,UnitCostHigh,UnitCostSpecified)),MATCH(UPPER(LEFT(E64,LEN(E64)-1)),CostCode,0))) -> 0 | G64: 0
A65: . | B65: Rip rap on ditches | C65: m3 | E65: =NA() ->  | F65: =IF(ISNA(E65),0,INDEX(IF(UPPER(RIGHT(E65,1))=Low,UnitCostLow, IF(UPPER(RIGHT(E65,1))=High,UnitCostHigh,UnitCostSpecified)),MATCH(UPPER(LEFT(E65,LEN(E65)-1)),CostCode,0))) -> 0 | G65: 0
A66: . | B66: Vegetate | C66: ha | E66: =NA() ->  | F66: =IF(ISNA(E66),0,INDEX(IF(UPPER(RIGHT(E66,1))=Low,UnitCostLow, IF(UPPER(RIGHT(E66,1))=High,UnitCostHigh,UnitCostSpecified)),MATCH(UPPER(LEFT(E66,LEN(E66)-1)),CostCode,0))) -> 0 | G66: 0
A67: . | B67: Concrete Slab Removal | C67: m2 | D67: 25000 | E67: BRCS | F67: =(IF(ISNA(E67),0,INDEX(IF(UPPER(RIGHT(E67,1))=Low,UnitCostLow, IF(UPPER(RIGHT(E67,1))=High,UnitCostHigh,UnitCostSpecified)),MATCH(UPPER(LEFT(E67,LEN(E67)-1)),CostCode,0)))*1.05)*1.03 -> 6.87834 | G67: 171958.5
A68: L | B68: OBJECTIVE: RECLAIM ROADS
A69: . | B69: Scarify and install water breaks | C69: km | D69: 10 | E69: SCFYH | F69: =(IF(ISNA(E69),0,INDEX(IF(UPPER(RIGHT(E69,1))=Low,UnitCostLow, IF(UPPER(RIGHT(E69,1))=High,UnitCostHigh,UnitCostSpecified)),MATCH(UPPER(LEFT(E69,LEN(E69)-1)),CostCode,0)))*1.05)*1.03 -> 5789.729138 | G69: =F69*D69 -> 57897.29138
A70: . | B70: Vegetate | C70: ha | E70: =NA() ->  | F70: =IF(ISNA(E70),0,INDEX(IF(UPPER(RIGHT(E70,1))=Low,UnitCostLow, IF(UPPER(RIGHT(E70,1))=High,UnitCostHigh,UnitCostSpecified)),MATCH(UPPER(LEFT(E70,LEN(E70)-1)),CostCode,0))) -> 0 | G70: =F70*D70 -> 0
A71: . | E71: =NA() ->  | F71: =IF(ISNA(E71),0,INDEX(IF(UPPER(RIGHT(E71,1))=Low,UnitCostLow, IF(UPPER(RIGHT(E71,1))=High,UnitCostHigh,UnitCostSpecified)),MATCH(UPPER(LEFT(E71,LEN(E71)-1)),CostCode,0))) -> 0 | G71: =F71*D71 -> 0
A72: K | B72: SPECIALIZED ITEMS
A73: . | E73: =NA() ->  | F73: =IF(ISNA(E73),0,INDEX(IF(UPPER(RIGHT(E73,1))=Low,UnitCostLow, IF(UPPER(RIGHT(E73,1))=High,UnitCostHigh,UnitCostSpecified)),MATCH(UPPER(LEFT(E73,LEN(E73)-1)),CostCode,0))) -> 0 | G73: =F73*D73 -> 0
B74: Subtotal | G74: =SUM(G5:G73) -> 5960318.556
G75: Total Buildings

Sheet Chemicals
A1: 1 | B1: Chemicals and Soil Contamination: | F1: 1
B3: ACTIVITY/MATERIAL | C3: Units | D3: Quantity | E3: Cost Code | F3: Unit Cost | G3: Cost
A4: . | B4: Note: The procedures, equipment and packaging for clean up and removal of chemicals or contaminated soils are highly dependent on the nature of the chemicals and their existing state of containment. Government guidelines should be consulted on an individual chemical basis. Any estimate made here should be considered very rough unless specific evaluations have been conducted.
A5: A | B5: LABORATORY CHEMICALS
A6: . | C6: pallet | E6: =NA() ->  | F6: =IF(ISNA(E6),0,INDEX(IF(UPPER(RIGHT(E6,1))=Low,UnitCostLow, IF(UPPER(RIGHT(E6,1))=High,UnitCostHigh,UnitCostSpecified)),MATCH(UPPER(LEFT(E6,LEN(E6)-1)),CostCode,0))) -> 0 | G6: =F6*D6 -> 0
A7: B | B7: PCB, hauling | C7: litre | E7: =NA() ->  | F7: =IF(ISNA(E7),0,INDEX(IF(UPPER(RIGHT(E7,1))=Low,UnitCostLow, IF(UPPER(RIGHT(E7,1))=High,UnitCostHigh,UnitCostSpecified)),MATCH(UPPER(LEFT(E7,LEN(E7)-1)),CostCode,0))) -> 0 | G7: 0
A8: . | B8: PCB, disposal | C8: litre | E8: =NA() ->  | F8: 0 | G8: 0
A9: C | B9: FUEL | E9: =NA() ->  | G9: 0
A10: . | B10: Type 1 | C10: kg | E10: =NA() ->  | F10: 0 | G10: 0
A11: . | B11: Type 2 | C11: kg | E11: =NA() ->  | F11: 0 | G11: 0
A12: . | B12: Type 3 | C12: kg | E12: =NA() ->  | F12: 0 | G12: =F12*D12 -> 0
A13: D | B13: WASTE OIL
A14: . | B14: Oils/lubricants - burn on-site | C14: litre | E14: =NA() ->  | F14: 0 | G14: 0
A15: . | B15: Oils/lubricants - ship off-site | C15: litre | E15: =NA() ->  | F15: 0 | G15: 0
A16: . | B16: Oils/lubricants - disposal fee | C16: litre | E16: =NA() ->  | F16: 0 | G16: 0
A17: E | B17: PROCESS OR TREATMENT CHEMICALS
A18: . | B18: Type 1 | C18: kg | E18: =NA() ->  | F18: 0 | G18: 0
A19: . | B19: Type 2 | C19: kg | E19: =NA() ->  | F19: 0 | G19: 0
A20: . | B20: Type 3 | C20: kg | E20: =NA() ->  | F20: 0 | G20: 0
A21: . | B21: Type 4 | C21: kg | E21: =NA() ->  | F21: 0 | G21: 0
A22: F | B22: EXPLOSIVES | C22: kg
A23: . | E23: =NA() ->  | G23: 0
A24: G | B24: CONTAMINATED SOILS
A25: . | B25: Type 1, light fuel | C25: m3 | E25: =NA() ->  | F25: 0 | G25: 0
A26: . | B26: Type 2, heavy fuel and oil | C26: m3 | D26: 7500 | E26: CSRS | F26: =(IF(ISNA(E26),0,INDEX(IF(UPPER(RIGHT(E26,1))=Low,UnitCostLow, IF(UPPER(RIGHT(E26,1))=High,UnitCostHigh,UnitCostSpecified)),MATCH(UPPER(LEFT(E26,LEN(E26)-1)),CostCode,0)))*1.05)*1.03 -> 56.77875 | G26: 425840.625
A27: . | B27: Type 3, metals | C27: m3 | E27: =NA() ->  | F27: 0 | G27: 0
A28: H | B28: Haz. Mat. testing & assessment
A29: . | B29: Technician and analyses | C29: each | D29: 1 | E29: =NA() ->  | F29: 0 | G29: 37852.5
A30: . | B30: Drilling | C30: each | D30: 1 | E30: =NA() ->  | F30: 0 | G30: 21630
A31: . | B31: Report | C31: each | D31: 1 | E31: =NA() ->  | F31: 0 | G31: 16222.5
A32: . | B32: OTHER
A33: . | E33: =NA() ->  | F33: 0 | G33: 0
B34: Subtotal | G34: =SUM(G6:G33) -> 501545.625
G35: Total Chemical

Sheet Water
A1: 1 | B1: Water Management Project: | E1: Project # | F1: 1
B3: ACTIVITY/MATERIAL | C3: Units | D3: Quantity | E3: Cost Code | F3: Unit Cost | G3: Cost
A4: A | B4: OBJECTIVE: STABILIZE EMBANKMENT
B5: Toe buttress, drain mat'l | C5: m3 | E5: =NA() ->  | F5: =IF(ISNA(E5),0,INDEX(IF(UPPER(RIGHT(E5,1))=Low,UnitCostLow, IF(UPPER(RIGHT(E5,1))=High,UnitCostHigh,UnitCostSpecified)),MATCH(UPPER(LEFT(E5,LEN(E5)-1)),CostCode,0))) -> 0 | G5: =F5*D5 -> 0
B6: , fill mat'l A | C6: m3 | E6: =NA() ->  | F6: =IF(ISNA(E6),0,INDEX(IF(UPPER(RIGHT(E6,1))=Low,UnitCostLow, IF(UPPER(RIGHT(E6,1))=High,UnitCostHigh,UnitCostSpecified)),MATCH(UPPER(LEFT(E6,LEN(E6)-1)),CostCode,0))) -> 0 | G6: 0
B7: , fill mat'l B | C7: m3 | E7: =NA() ->  | F7: =IF(ISNA(E7),0,INDEX(IF(UPPER(RIGHT(E7,1))=Low,UnitCostLow, IF(UPPER(RIGHT(E7,1))=High,UnitCostHigh,UnitCostSpecified)),MATCH(UPPER(LEFT(E7,LEN(E7)-1)),CostCode,0))) -> 0 | G7: 0
B8: Rip rap | C8: m3 | E8: =NA() ->  | F8: 0 | G8: 0
B9: Vegetate | C9: ha | E9: =NA() ->  | F9: 0 | G9: 0
B10: Raise crest | C10: m3 | E10: =NA() ->  | F10: 0 | G10: 0
B11: Other | E11: =NA() ->  | F11: 0 | G11: 0
A12: B | B12: OBJECTIVE: UPGRADE SPILLWAY
B13: Excavate channel, mat'l A | C13: m3 | E13: =NA() ->  | F13: 0 | G13: 0
B14: , mat'l B | C14: m3 | E14: =NA() ->  | F14: 0 | G14: 0
B15: Concrete | C15: m3 | E15: =NA() ->  | F15: 0 | G15: 0
B16: Rip rap | C16: m3 | E16: =NA() ->  | F16: 0 | G16: 0
B17: Other | E17: =NA() ->  | F17: 0 | G17: 0
A18: C | B18: OBJECTIVE: STABILIZE SEDIMENT CONTAINMENT PONDS
B19: Place soil cover | C19: m3 | E19: =NA() ->  | F19: 0 | G19: 0
B20: Place geotextile | C20: m2 | E20: =NA() ->  | F20: 0 | G20: 0
B21: Vegetate | C21: m3 | E21: =NA() ->  | F21: 0 | G21: 0
B22: Other | E22: =NA() ->  | F22: 0 | G22: 0
A23: D | B23: OBJECTIVE: BREACH EMBANKMENT
B24: Remove Fill | C24: m3 | E24: =NA() ->  | F24: 0 | G24: 0
B25: Other | E25: =NA() ->  | F25: 0 | G25: 0
A26: E | B26: OBJECTIVE: STABILIZE DITCHES
B27: Flatten side slopes | C27: m3 | E27: =NA() ->  | F27: 0 | G27: 0
B28: Rip rap | C28: m3 | E28: =NA() ->  | F28: 0 | G28: 0
B29: Vegetate | C29: ha | E29: =NA() ->  | F29: 0 | G29: 0
B30: Other | E30: =NA() ->  | F30: 0 | G30: 0
A31: F | B31: OBJECTIVE: BREACH DITCHES
B32: Excavate | C32: m3 | E32: =NA() ->  | F32: 0 | G32: 0
B33: Backfill/recontour | C33: m3 | E33: =NA() ->  | F33: 0 | G33: 0
B34: Vegetate | C34: ha | E34: =NA() ->  | F34: 0 | G34: 0
B35: Other | E35: =NA() ->  | F35: 0 | G35: 0
A36: G | B36: OBJECTIVE: REMOVE PIPELINES
B37: Remove pipes | C37: m | E37: =NA() ->  | F37: 0 | G37: 0
B38: Concrete plug deep pipes | C38: m3 | E38: =NA() ->  | F38: 0 | G38: 0
B39: Other | E39: =NA() ->  | F39: 0 | G39: 0
A40: H | B40: OBJECTIVE: REMOVE STORAGE TANKS
B41: Remove tanks & plumbing | C41: m2 | E41: =NA() ->  | F41: 0 | G41: 0
B42: Excavate & backfill | C42: m3 | E42: =NA() ->  | F42: 0 | G42: 0
B43: Other | E43: =NA() ->  | F43: 0 | G43: 0
A44: I | B44: OBJECTIVE: COLLECT DRAINAGE FOR TREATMENT
B45: Excavate collection ditches | C45: m3 | E45: =NA() ->  | F45: 0 | G45: 0
B46: Rip rap ditches | C46: m3 | E46: =NA() ->  | F46: 0 | G46: 0
B47: Pipes | C47: m | E47: =NA() ->  | F47: 0 | G47: 0
B48: Pumps | C48: each | E48: =NA() ->  | F48: 0 | G48: 0
B49: Collect'n pond, exc. mat'l A | C49: m3 | E49: =NA() ->  | F49: 0 | G49: 0
B50: , exc. mat'l B | C50: m3 | E50: =NA() ->  | F50: 0 | G50: 0
B51: Collect'n pond, fill mat'l A | C51: m3 | E51: =NA() ->  | F51: 0 | G51: 0
B52: , fill mat'l B | C52: m3 | E52: =NA() ->  | F52: 0 | G52: 0
B53: Collect'n pond, liner | C53: m2 | E53: =NA() ->  | F53: 0 | G53: 0
A54: J | B54: OBJECTIVE: TREAT DRAINAGE (see "ONGOING TREATMENT" for operating costs)
B55: Build treatment plant lump sum | E55: =NA() ->  | F55: 0 | G55: 0
E56: =NA() ->  | F56: 0 | G56: 0
B57: Subtotal | G57: =SUM(G5:G56) -> 0
G58: Total Water

Sheet Mobilization
A1: 1 | B1: Mobilization Name: | E1: Mob # | F1: 1
B3: ACTIVITY/MATERIAL | C3: Units | D3: Quantity | E3: Cost Code | F3: Unit Cost | G3: Cost
A4: A | B4: MOBILIZE HEAVY EQUIPMENT
A5: Equipment to regional centre
A6: . | B6: Mobilization - ICE ROAD | C6: ea | D6: 1 | E6: MHERS | F6: =(IF(ISNA(E6),0,INDEX(IF(UPPER(RIGHT(E6,1))=Low,UnitCostLow,IF(UPPER(RIGHT(E6,1))=High,UnitCostHigh,UnitCostSpecified)),MATCH(UPPER(LEFT(E6,LEN(E6)-1)),CostCode,0)))*1.05)*1.03 -> 1959290.023 | G6: =F6*D6 -> 1959290.023
A7: . | B7: Demobilization - ICE ROAD | C7: ea | D7: 1 | E7: MHEAS | F7: =(IF(ISNA(E7),0,INDEX(IF(UPPER(RIGHT(E7,1))=Low,UnitCostLow, IF(UPPER(RIGHT(E7,1))=High,UnitCostHigh,UnitCostSpecified)),MATCH(UPPER(LEFT(E7,LEN(E7)-1)),CostCode,0)))*1.05)*1.03 -> 783873.9686 | G7: 783873.9686
A8: . | C8: km | E8: =NA() ->  | F8: =IF(ISNA(E8),0,INDEX(IF(UPPER(RIGHT(E8,1))=Low,UnitCostLow, IF(UPPER(RIGHT(E8,1))=High,UnitCostHigh,UnitCostSpecified)),MATCH(UPPER(LEFT(E8,LEN(E8)-1)),CostCode,0))) -> 0 | G8: 0
A9: . | C9: km | E9: =NA() ->  | F9: 0 | G9: 0
A10: Equipment, regional centre to site
A11: . | B11: Excavators | C11: km | E11: =NA() ->  | F11: 0 | G11: 0
A12: . | B12: Dump trucks | C12: km | E12: =NA() ->  | F12: 0 | G12: =F12*D12 -> 0
A13: . | B13: Dozers | C13: km | E13: =NA() ->  | F13: 0 | G13: 0
A14: . | B14: Demolition shears | C14: km | E14: =NA() ->  | F14: 0 | G14: 0
A15: B | B15: MOBILIZE CAMP
A16: . | E16: =NA() ->  | G16: 0
A17: C | B17: MOBILIZE WORKERS | C17: manday
A18: . | E18: =NA() ->  | F18: 0 | G18: 0
A19: D | B19: MOBILIZE MISC. SUPPLIES
A20: . | B20: Fuel | C20: litre | D20: 2790369 | E20: =NA() ->  | F20: 1 | G20: 2790369
A21: . | B21: Minor tools and equipment | C21: allowance | E21: =NA() ->  | F21: 0 | G21: 0
A22: . | B22: Truck tires | C22: allowance | E22: =NA() ->  | F22: 0 | G22: 0
A23: E | B23: MOBILIZE & HOUSE WORKERS person days
A24: . | E24: =NA() ->  | G24: 0
A25: . | B25: WINTER ROAD
A26: . | B26: Full winter use | C26: km | E26: =NA() ->  | F26: 0 | G26: 0
A27: . | B27: Limited winter use | C27: km | E27: =NA() ->  | F27: 0 | G27: 0
A28: . | E28: =NA() ->  | F28: 0 | G28: 0
A29: F | B29: BONDING lump sum
A30: . | E30: =NA() ->  | G30: 0
A31: G | B31: TAXES lump sum
A32: . | E32: =NA() ->  | G32: 0
A33: H | B33: INSURANCE lump sum
A34: . | E34: =NA() ->  | G34: 0.01
B35: Subtotal | G35: =SUM(G6:G34) -> 5533533.001
G36: Total Mob.

Sheet Monitor
A1: 1 | B1: Monitoring & Maintenance | E1: Mon / Mtce # | F1: 1
B3: ACTIVITY/MATERIAL | C3: Units | D3: Quantity | E3: Cost Code | F3: Unit Cost | G3: Cost
A4: A | B4: OBJECTIVE: INSPECTIONS
B5: Annual geotechnical insp. | C5: each | D5: 5 | E5: =NA() ->  | F5: 20000 | G5: =F5*D5 -> 100000
A6: . | B6: Monitoring years 1-5 | C6: year | D6: 3 | E6: =NA() ->  | F6: 350000 | G6: =F6*D6 -> 1050000
A7: . | B7: EEM | C7: each | D7: 1 | E7: =NA() ->  | F7: 110000 | G7: =F7*D7 -> 110000
A8: . | C8: each | E8: =NA() ->  | F8: =IF(ISNA(E8),0,INDEX(IF(UPPER(RIGHT(E8,1))=Low,UnitCostLow, IF(UPPER(RIGHT(E8,1))=High,UnitCostHigh,UnitCostSpecified)),MATCH(UPPER(LEFT(E8,LEN(E8)-1)),CostCode,0))) -> 0 | G8: =F8*D8 -> 0
A9: . | C9: each | D9: 0 | E9: =NA() ->  | G9: 0
A10: B | B10: OBJECTIVE: MAINTENANCE
A11: . | B11: Security guard | C11: month | E11: =NA() ->  | F11: 0 | G11: =F11*D11 -> 0
A12: . | B12: Accomodation | C12: month | E12: =NA() ->  | F12: 0 | G12: =F12*D12 -> 0
A13: . | B13: Maintain pumping | C13: month | E13: =NA() ->  | F13: 0 | G13: =F13*D13 -> 0
A14: . | B14: Clear spillway | C14: each | E14: =NA() ->  | F14: 0 | G14: =F14*D14 -> 0
A15: . | B15: Other
E16: =NA() ->  | G16: 0.01
B17: Subtotal | G17: =SUM(G5:G16) -> 1260000.01
G18: Total Pits

Sheet PostClosure
A1: 1 | B1: Post-Closure Site Maintenance
B3: ACTIVITY/MATERIAL | C3: Units | D3: Quantity | E3: Cost Code | F3: Unit Cost | G3: Cost | H3: % Land | I3: Land Cost | J3: Water Cost
A4: A | B4: WATER TREATMENT
B5: Total annual cost, unit cost from Ongoing Water Treatment | F5: =+OWTotal -> 0 | G5: =F5*D5 -> 0 | I5: =G5*H5 -> 0 | J5: =G5*(1-H5) -> 0
A6: B | B6: Cover Maintenance
B7: Repair erosion, remove trees | C7: ha | E7: =NA() ->  | F7: =IF(ISNA(E7),0,INDEX(IF(UPPER(RIGHT(E7,1))=Low,UnitCostLow, IF(UPPER(RIGHT(E7,1))=High,UnitCostHigh,UnitCostSpecified)),MATCH(UPPER(LEFT(E7,LEN(E7)-1)),CostCode,0))) -> 0 | G7: =F7*D7 -> 0 | I7: 0 | J7: =G7*(1-H7) -> 0
A8: C | B8: Spillway Maintenance
B9: Repair erosion | C9: m3 | E9: =NA() ->  | F9: =IF(ISNA(E9),0,INDEX(IF(UPPER(RIGHT(E9,1))=Low,UnitCostLow, IF(UPPER(RIGHT(E9,1))=High,UnitCostHigh,UnitCostSpecified)),MATCH(UPPER(LEFT(E9,LEN(E9)-1)),CostCode,0))) -> 0 | G9: =F9*D9 -> 0 | I9: 0 | J9: 0
B10: Clear spillway | C10: each | E10: =NA() ->  | F10: =IF(ISNA(E10),0,INDEX(IF(UPPER(RIGHT(E10,1))=Low,UnitCostLow, IF(UPPER(RIGHT(E10,1))=High,UnitCostHigh,UnitCostSpecified)),MATCH(UPPER(LEFT(E10,LEN(E10)-1)),CostCode,0))) -> 0 | G10: =F10*D10 -> 0 | I10: 0 | J10: 0
C11: each | E11: =NA() ->  | F11: =IF(ISNA(E11),0,INDEX(IF(UPPER(RIGHT(E11,1))=Low,UnitCostLow, IF(UPPER(RIGHT(E11,1))=High,UnitCostHigh,UnitCostSpecified)),MATCH(UPPER(LEFT(E11,LEN(E11)-1)),CostCode,0))) -> 0 | J11: 0
A12: D | B12: Other
I13: 0 | J13: 0
I14: 0
B15: Subtotal, Annual post-closure costs | G15: =SUM(G5:G14) -> 0 | I15: =SUM(I5:I14) -> 0 | J15: =SUM(J5:J14) -> 0
B16: Discount rate for calculation of net present value of post-closure cost, % | E16: 0.03 | I16: 0
B17: Number of years of post-closure activity | E17: 5 | F17: years | I17: 0
B18: Present Value of payment stream | G18: =PV(DiscountRate,PCYears, PCAnnualTotal)*-1 -> 0 | H18: =+I18/G18 ->  | I18: =PV(DiscountRate,PCYears, I15)*-1 -> 0 | J18: =PV(DiscountRate,PCYears, J15)*-1 -> 0
G19: Total Post closure | H19: Percent Land | I19: Total Land | J19: Total Water

Sheet Ongoing Water
B1: WATER TREATMENT COSTS
D2: ANNUAL VOLUME OF WATER (m3)
B4: Reagent addition rates
B5: Reagent | D5: kg reagent/m3 water | F5: cost in $/kg, FOB site | G5: Annual reagent cost
B6: H2O2 | D6: 0.1 | E6: kg/m3 | F6: 1.5 | G6: =WaterVol*D6*F6 -> 0
B7: lime | E7: kg/m3 | F7: 0.45 | G7: =WaterVol*D7*F7 -> 0
B8: ferric sulphate | E8: kg/m3 | G8: =WaterVol*D8*F8 -> 0
B9: ferrous sulphate | E9: kg/m3 | G9: =WaterVol*D9*F9 -> 0
B10: flocculents | E10: kg/m3 | G10: =WaterVol*D10*F10 -> 0
F12: TOTAL | G12: =SUM(G6:G11) -> 0
B14: Supplies and Labour
B15: power, kW-hr | D15: 0 | E15: rate, $/kW-hr | F15: 0.08 | G15: =D15*F15 -> 0
B16: misc. supplies, hoses, tools | G16: 0
B17: sampling equip. | G17: 0
B18: equip. maintenance and parts | G18: 0
B19: water analysis | G19: 0
B20: reporting | G20: 0
B21: truck rental | G21: 0
B22: annual mileage | G22: 0
B23: road maintenace & snow plowing | G23: 0
B24: electrician/mechanic for treatment plant & power supply | G24: 0
E25: Annual cost | G25: =SUM(G15:G24) -> 0
B27: labor, hourly rate | D27: 35
C28: men per day for water treatment work | G28: 1
C29: on site, days per year | G29: 0
C30: spring/fall maintenance, extra work | G30: 0
C31: hours worked per year | G31: 0
C32: annual labor cost | G32: =G31*D27 -> 0
E34: Total, labour and supplies | G34: =G25+G32 -> 0
B37: TOTAL ANNUAL COSTS, reagents plus labour and supplies | G37: =G12+G34+D49+D50+D51 -> 0
B38: Average treatment cost, $/m3 | G38: =IF(WaterVol=0,0,OWTotal/WaterVol) -> 0
B40: Water analyses
B41: samples per month | D41: 10
B42: analysis cost/sample | D42: 100
B43: shipping | D43: 200
B44: Total Water Sampling | D44: =D41*D42+D43 -> 1200
B47: Site Access
B48: annual site access cost
B49: road | D49: 0
B50: air | D50: 0
B51: winter road | D51: 0

Sheet Unit_Costs
F1: Unit Cost Table
B3: ITEM | C3: Detail | E3: COST CODE | F3: UNITS | G3: LOW $ | H3: HIGH $ | I3: SPECIFIED $
A5: 1 | B5: excavate Rock, Bulk | K5: COMMENTS
C6: drill, blast, load short haul (<500m) Dump | E6: RB1 | F6: m3 | G6: 10.11 | H6: 15.141 | I6: =NA() ->  | K6: quarry operations for bulk fill
C7: RB1 + long haul, up to 1500 m | E7: RB2 | F7: m3 | G7: 10.71 | H7: 15.7899 | I7: =NA() -> 
C8: RB1 + spread and compact | E8: RB3 | F8: m3 | G8: 10.71 | H8: 15.7899 | I8: =NA() -> 
C9: RB1 + long haul + spread and compact | E9: RB4 | F9: m3 | G9: 11.3 | H9: 27.307875 | I9: =NA() -> 
C10: RB1 + Specified activity | E10: RBS | F10: m3 | G10: =NA() ->  | H10: =NA() ->  | I10: =NA() -> 
A11: 2 | B11: excavate Rock, Controlled
C12: drill, blast, load short haul (<500m) Dump | E12: RC1 | F12: m3 | G12: 23.793 | H12: 35.6895 | I12: =NA() ->  | K12: spillway excavation
C13: RC1 + long haul, up to 1500 m | E13: RC2 | F13: m3 | G13: 11.3 | H13: 16.33065 | I13: =NA() -> 
C14: RC1 + spread and compact | E14: RC3 | F14: m3 | G14: 11.3 | H14: 15.7899 | I14: =NA() -> 
C15: RC1 + long haul + spread and compact | E15: RC4 | F15: m3 | G15: 11.99 | H15: 17.011995 | I15: =NA() -> 
C16: RC1 + Specified activity | E16: RCS | F16: m3 | G16: =NA() ->  | H16: =NA() ->  | I16: 145 | K16: $145/M3-drift excavation
A17: 3 | B17: excavate Soil, Bulk
C18: excavate, load short haul (<500m) dump | E18: SB1 | F18: m3 | G18: 3.4608 | H18: 5.245275 | I18: =NA() ->  | K18: LOW cost: excavation of loose soil, high volume
C19: SB1 + long haul, up to 1500 m | E19: SB2 | F19: m3 | G19: 4.30437 | H19: 6.456555 | I19: 6.32 | K19: LOW cost: excavation of loose soil, 1.5 km haul, high volume SPECIFIED: Adjusted high cost at 2% per year from 2005
C20: SB1 + spread and compact | E20: SB3 | F20: m3 | G20: 4.00155 | H20: 5.742765 | I20: =NA() -> 
C21: SB1 + long haul + spread and compact | E21: SB4 | F21: m3 | G21: 4.86675 | H21: 9.679425 | I21: =NA() ->  | K21: LOW cost: excavation of loose soil, 1.5 km haul, high volume, const. of simple soil cover
C23: SB1 + Specified activity | E23: SBS | F23: m3 | G23: 2.498265 | H23: 6.89997 | I23: 10.95 | K23: LOW cost: rehandle waste rock dump into pit, >500,000 m3, 2 km haul
K24: SPECIFIED cost: rehandle waste rock, haul 3 km, place & compact on dam
C26: Soil, tailings | E26: SBT | F26: m3 | G26: 3.276945 | H26: 7.732725 | K26: LOW cost: doze tailings, HIGH cost: excavate & short haul
A27: 4 | B27: excavate Soil, Controlled
C28: excavate, load short haul (<500 m), dump | E28: SC1 | F28: m3 | G28: 6.067215 | H28: 8.273475 | I28: =NA() -> 
C29: SC1 + long haul, up to 1500 m | E29: SC2 | F29: m3 | G29: 7.516425 | H29: 10.42566 | I29: =NA() -> 
C30: SC1 + spread and compact | E30: SC3 | F30: m3 | G30: 6.067215 | H30: 12.61029 | I30: =NA() ->  | K30: HIGH cost: for simple soil covers
C31: SC1 + long haul + spread and compact | E31: SC4 | F31: m3 | G31: 6.81345 | H31: 20.602575 | I31: =NA() ->  | K31: HIGH cost: for complex covers & dam construction, spillway repair, LOW volume
C32: SC1 + Specified activity | E32: SCS | F32: m3 | G32: =NA() ->  | H32: =NA() ->  | I32: 15.75 | K32: SPECIFIED cost: backfill adit with waste rock
B33: Geo-synthetics
C34: geotextile, filter cloth | E34: GST | F34: M2 | G34: 1.070685 | H34: 2.14137 | I34: =NA() ->  | K34: FOB Edmonton, add shipping & installation
C35: geogrid | E35: GSG | F35: M2 | G35: 5.115495 | I35: =NA() -> 
C36: liner, HDPE | E36: GSHDPE | F36: M2 | G36: 6.370035 | I36: =NA() -> 
C37: liner, PVC | E37: GSPVC | F37: M2 | I37: =NA() -> 
C38: geosynthetic installation | E38: GSI | F38: m2 | G38: 0.897645 | H38: 1.03 | I38: =NA() -> 
C39: bentonite soil ammendment | E39: GSBA | F39: tonne | G39: 273.6195 | H39: 309.309 | I39: =NA() ->  | K39: FOB Edmonton, add shipping & mixing
B40: Shaft, Raise & Portal Closures
C41: Cap Shafts | E41: SR | F41: ea | G41: 573.195 | H41: 1892.625 | I41: 74732.46 | K41: SPECIFIED: QUOTED COSTS 2005 Plus 6%
C42: Portals | E42: POR | F42: m3 | G42: 0 | H42: 221.7075 | I42: 1000 | K42: HIGH cost: for excavate & backfill collapsed portal SPECIFIED cost: installed pressure plug
A49: 5 | B49: Concrete work
C50: Small pour, no forms | E50: CS | F50: m3 | G50: 321.2055 | H50: 643.4925 | I50: =NA() -> 
C51: Large pour, no forms | E51: CL | F51: m3 | G51: 254.1525 | H51: 378.525 | I51: =NA() -> 
C52: Small pour, Formed | E52: CSF | F52: m3 | G52: 378.525 | H52: 1892.625 | I52: =NA() -> 
C53: Large pour, Formed | E53: CLF | F53: m3 | G53: 313.635 | H53: 443.415 | I53: =NA() -> 
A54: 6 | B54: Vegetation
C55: Hydroseed, Flat | E55: VHF | F55: ha | G55: 1724.9925 | H55: 5353.425 | I55: =NA() -> 
C56: Hydroseed, Sloped | E56: VHS | F56: ha | G56: 1998.612 | H56: 6007.7325 | I56: =NA() -> 
C57: veg. Blanket/erosion mat | E57: VB | F57: ha | G57: 11896.5 | H57: 14275.8 | I57: =NA() -> 
C58: Tree planting | E58: VT | F58: ha | G58: 11896.5 | H58: 14275.8 | I58: =NA() -> 
C59: Wetland species | E59: VW | F59: ha | G59: 59482.5 | H59: 89223.75 | I59: =NA() -> 
A60: 7 | B60: Pumps
C61: Small, < | E61: PS | F61: each | G61: 3244.5 | H61: 6489 | I61: =NA() -> 
C62: Large, > | E62: PL | F62: each | G62: 5407.5 | H62: 108150 | I62: =NA() ->  | K62: large - 250 hp Gould w/diesel motor
A63: 8 | B63: PiPes
C64: Pipes >6 inches | E64: PPS | F64: m | G64: 0.54075 | H64: 5.4075 | I64: 10.89 | K64: LOW cost: pipe removal, HIGH cost: supply new pipe SPECIFIED: steel covered heat traced & insulated pipe
C65: Fuel Contaminated | E65: PPL | F65: m | G65: 1.0815 | H65: 194.67 | I65: 50.02 | K65: LOW cost: pipe removal, HIGH cost: supply 24" 100 psi HDPE pipe, FOB Edm. SPECIFIED: 2005 Quoted Cost plus 6%.
A67: 9 | B67: pump sand BackFill | E67: BF | F67: m3 | G67: 5.94825 | H67: 17.84475 | I67: =NA() -> 
A68: 10 | B68: Fence | E68: F | F68: m | G68: 11.8965 | H68: 178.4475 | I68: =NA() -> 
A69: 11 | B69: Signs | E69: S | F69: each | G69: 11.8965 | H69: 35.6895 | I69: =NA() -> 
A70: 12 | B70: rock, Drill and Blast only | E70: DB | F70: m3 | G70: 11.8965 | H70: 23.793 | I70: =NA() -> 
B71: (flatten slope, collapse drift)
A72: 13 | B72: excavate Rip Rap
C73: drill, blast, load short haul (<500 m) dump and spread | E73: RR1 | F73: m3 | G73: 11.842425 | H73: 17.682525 | I73: =NA() -> 
C74: RR1 + long haul | E74: RR2 | F74: m3 | G74: 12.00465 | H74: 18.331425 | I74: =NA() ->  | K74: HIGH cost: quarry & place rip rap in channel
C75: excavate rock from waste dump, short haul, spread | E75: RR3 | F75: m3 | G75: 4.5423 | H75: 6.25107 | I75: =NA() ->  | K75: LOW cost: removal of 18 in minus from dump, long haul and spread
K76: HIGH cost: removal of coarse rock from dump, long haul, armour spillway
C77: RR3 + long haul | E77: RR4 | F77: m3 | G77: 5.06142 | H77: 6.759375 | I77: =NA() -> 
C78: specified rip rap source | E78: RR5 | F78: m3 | G78: =NA() ->  | H78: =NA() ->  | I78: =NA() -> 
A79: 14 | B79: Import LimeStone | E79: ILS | F79: tonne | G79: 9.5172 | H79: 14.2758 | I79: =NA() -> 
A80: 15 | B80: Import LiMe | E80: ILM | F80: tonne | G80: 178.4475 | H80: 535.3425 | I80: =NA() ->  | K80: LOW cost: bulk shipping, high volume, FOB Vancouver/Edmonton
K81: HIGH cost: bags delivered to central Yukon, small volume
A82: 16 | B82: Grouting | E82: G | F82: m3 | G82: 214.137 | H82: 259.56 | I82: =NA() ->  | K82: HIGH cost: cement, FOB Yellowknife
A83: 17 | B83: Dozing
C84: doze Rock piles | E84: DR | F84: m3 | G84: 0.919275 | H84: 2.108925 | I84: =NA() ->  | K84: LOW cost: doze crest off dump
C85: doze overburden/Soil piles | E85: DS | F85: m3 | G85: 0.84357 | H85: 3.363465 | I85: =NA() ->  | K85: HIGH cost: push up to 300 m
A86: 18
I87: =NA() -> 
I88: =NA() -> 
A89: 19
I90: =NA() -> 
I91: =NA() -> 
A92: 20
F93: each | G93: 0 | H93: 0 | I93: =NA() -> 
F94: each | I94: =NA() -> 
A95: 21 | B95: Buildings - Decontaminate
C96: Isolate (glycol, water,sewer,power) | E96: BDC | F96: m2 | G96: =NA() ->  | H96: =NA() ->  | I96: 11.02 | K96: SPECIFIED: Quoted 2005 cost plus 6%
C97: Asbestos | E97: BDA | F97: m2 | G97: 22.7115 | H97: 45.423 | I97: =NA() ->  | K97: LOW cost: removal of asbestos siding & flooring HIGH cost: removal of insulated pipes, friable asbestos
A99: 22 | B99: Buildings - Remove
C100: areas are per floor on 3 m average height | K100: LOW cost: removal and on-site disposal - small wooden structures
C101: Wood - teardown | E101: BRW1 | F101: m2 | G101: 23.25225 | H101: 35.6895 | I101: =NA() -> 
C102: Wood - burn | E102: BRW2 | F102: m2 | G102: 5.94825 | H102: 11.8965 | I102: =NA() -> 
C103: Masonry | E103: BRM | F103: m2 | G103: 25.577475 | H103: 35.6895 | I103: =NA() -> 
C104: Concrete | E104: BRC | F104: m | G104: 35.6895 | H104: 53.53425 | I104: 6.36 | K104: LOW cost: removal of building perimeter walls, HIGH cost: per m3 for bulk concrete SPECIFIED cost: $/m2 to break floor slab
C105: Steel - teardown | E105: BRS1 | F105: m2 | G105: 38.0688 | H105: 57.1032 | I105: 125.56 | K105: SPECIFIED cost: quoted 2005 cost demolition $/m2 plus 6%
C106: Tanks | E106: BRS2 | F106: m3 | G106: 59.4825 | H106: 89.22375 | I106: 22.26 | K106: SPECIFIED cost: quoted 2005 costs plus 6% $/m3 storage tank includes decontamination
A107: 23 | B107: Power & Pipe Lines
C108: Power lines, remove | E108: POWR | F108: each | G108: 22.60335 | H108: 4996.53 | I108: =NA() -> 
I109: =NA() -> 
A110: 24 | B110: Laboratory Chemicals
C111: Remove from site | E111: LCR | F111: pallet | G111: 1892.625 | H111: 2509.08 | I111: =NA() -> 
C112: Dispose on site | E112: LCD | F112: each | G112: =NA() ->  | H112: =NA() ->  | I112: =NA() -> 
A113: 25 | B113: PCB - Remove from site | E113: PCBR | F113: litre | G113: 35.6895 | H113: 41.63775 | I113: =NA() ->  | K113: LOW cost: shipping, handling & disposal from Yellowknife
A115: 26 | B115: Fuel
C116: Remove from site | E116: FR | F116: kg | G116: 0 | H116: 1.10313 | I116: =NA() -> 
C117: Burn on site | E117: FB | F117: kg | G117: =NA() ->  | H117: =NA() ->  | I117: =NA() -> 
A118: 27 | B118: Oil
C119: Remove from site | E119: OR | F119: litre | G119: 0.378525 | H119: 1.10313 | I119: =NA() -> 
C120: Burn on site | E120: OB | F120: litre | G120: 0.378525 | H120: 0.594825 | I120: =NA() -> 
A121: 28 | B121: Process Chemicals
C122: Remove from site | E122: PCR | F122: kg | G122: 0.378525 | H122: 2.217075 | I122: =NA() -> 
C123: Dispose on site | E123: PCD | F123: kg | G123: =NA() ->  | H123: =NA() ->  | I123: =NA() -> 
A124: 29 | B124: Explosives
C125: Remove from site | E125: ER | F125: kg | G125: 0 | H125: 2.3793 | I125: =NA() -> 
C126: Dispose on site | E126: ED | F126: kg | G126: =NA() ->  | H126: =NA() ->  | I126: =NA() -> 
A127: 30 | B127: Contaminated Soils
C128: Remediate on site | E128: CSR | F128: m3 | G128: 41.63775 | H128: 129.78 | I128: =50*1.05 -> 52.5 | K128: LOW cost: bio-remediate on-site. HIGH cost: ship off-site to landfil as haz. waste
C129: consolidate & cover | E129: Use cost code items 1 - 4
C130: cover in place | E130: Use cost code items 1 - 4
A131: 31 | B131: Mobilize Heavy Equipment
C132: Mobilize | E132: MHER | F132: each | G132: 3.039015 | H132: 9.10623 | I132: 1811641.26 | K132: SPECIFIED cost: quoted 2005 cost plus 6%
C133: Demobilize | E133: MHEA | F133: each | G133: =NA() ->  | H133: =NA() ->  | I133: 724802.56 | K133: SPECIFIED cost: quoted 2005 cost plus 6%
A134: 32 | B134: Mobilize Camp
C135: <20 persons Road access | E135: MC<R | F135: each | G135: =NA() ->  | H135: =NA() ->  | I135: =NA() -> 
C136: <20 persons Air access | E136: MC<A | F136: each | G136: =NA() ->  | H136: =NA() ->  | I136: =NA() -> 
A137: 33 | B137: Mobilize Workers
C138: mobilize | E138: MM< | F138: person | G138: 208.7295 | H138: 1070.685 | I138: =NA() ->  | K138: LOW cost: road access. HIGH cost: transport by Twin Otter aircraft
C139: >20 persons | E139: MM> | F139: person | G139: 1070.685 | H139: 1427.58 | I139: =NA() -> 
A140: 34 | B140: ACCoModation | E140: ACCM | F140: month | G140: 1427.58 | H140: 2141.37 | I140: =NA() ->  | K140: LOW cost, accom in existing camp, per man, HIGH cost: - supply new camp
A141: 35 | B141: Mobilize Misc. Supplies | E141: MMS | F141: each | G141: =NA() ->  | H141: =NA() ->  | I141: =NA() ->  | K141: LOW cost: winter road - limited use, LOW snowfall
A142: 36 | B142: Winter Road | E142: WR | F142: km | G142: 1427.58 | H142: 2833.53 | I142: =NA() -> 
A143: 37 | B143: Visual site Inspection | E143: VI | F143: each | G143: 3806.88 | H143: 7678.65 | I143: 10000
A144: 38 | B144: Survey site Inspection | E144: SI | F144: each | G144: =NA() ->  | H144: =NA() ->  | I144: =NA() -> 
A145: 39 | B145: Water Sampling | E145: WS | F145: each | G145: 5948.25 | H145: 9733.5 | I145: =NA() -> 
A146: 40 | B146: site inspection RePorT | E146: RPT | F146: each | G146: =NA() ->  | H146: =11000*1.05 -> 11550 | I146: =NA() -> 
A147: 41 | B147: Security Guard | E147: SG | F147: pers/mon | G147: 5665 | H147: 8327.55 | I147: =NA() -> 
A148: 42 | B148: Maintain Pumping | E148: MP | F148: month | G148: 3568.95 | I148: =NA() -> 
A149: 43 | B149: Clear SpillWay | E149: CSW | F149: each | G149: 2022.405 | H149: 5710.32 | I149: =NA() -> 
A150: 44 | B150: Build Treatment Plant
C151: Small (< 1000 m3/d) | E151: BTPS | F151: lump sum | G151: 1081500 | H151: 2163000 | I151: =NA() -> 
C152: Large (> 1000 m3/d) | E152: BTPL | F152: lump sum | G152: 2163000 | H152: 3785250 | I152: =NA() -> 
A153: 45 | B153: Operate Treatment Plant | E153: OTP | F153: m3 | G153: 0.313635 | H153: 1.784475 | I153: =NA() -> 
A154: 46 | B154: SCariFY road and | E154: SCFY | F154: km | G154: 3812.2875 | H154: 5353.425 | I154: =NA() -> 
B155: install water breaks
B158: water treatment chemicals
B159: ferric sulphate | E159: ferric | F159: kg | G159: 0.724605
B160: ferrous sulphate | E160: ferrous | F160: kg | G160: 0.47586
B161: lime | E161: lime | F161: kg | G161: 0.32445
B162: hydrogen peroxide, 50% | E162: hperox | F162: kg | G162: 1.546545
B163: Sodium Metabisulfate | E163: Nametab | F163: kg | G163: 1.070685
B164: Caustic soda, 50% | E164: caustic | F164: kg | G164: 0.67053
B165: Sulfuric acid, 93% | E165: sulfuric | F165: kg | G165: 0.28119
B166: flocculant | E166: flocc | F166: kg | G166: 5.829285
B167: copper sulphate | E167: copper | F167: kg | G167: 0
B168: typical shipping, to Whitehorse or Yellowknife | F168: kg | G168: 0.077868
B170: Typical Labour & Equipment Rates
C171: Site manager | F171: $/hr | G171: 75.705 | H171: =80*1.05 -> 84
C172: Mine superintendent | F172: $/hr | G172: 0 | H172: =60*1.05 -> 63
C173: Environmental coordinator | F173: $/hr | G173: 0 | H173: =60*1.05 -> 63
C174: Journeyman (mech, elec, weld) | F174: $/hr | G174: 54.075 | H174: =60*1.05 -> 63
C175: Equipment operator | F175: $/hr | G175: 48.6675 | H175: =55*1.05 -> 57.75
C176: labour - skilled | F176: $/hr | G176: 37.8525 | H176: =38*1.05 -> 39.9
C177: labour - unskilled | F177: $/hr | G177: 34.608 | H177: =35*1.05 -> 36.75
C178: Security / first aid | F178: $/hr | G178: 41.097 | H178: =48*1.05 -> 50.4
C179: Admin. | F179: $/hr | G179: 45.423 | H179: =49*1.05 -> 51.45
G180: 0
C181: Front end loader, ?, Cat992 | F181: $/hr | G181: 0 | H181: =330*1.05 -> 346.5
C182: excavator, Cat235 | F182: $/hr | G182: 0 | H182: =175*1.05 -> 183.75
C183: dump truck - tandem | F183: $/hr | G183: 0
C184: dump truck off road, Cat 777 | F184: $/hr | G184: 286.5975
C185: dozer, D8, D10 | F185: $/hr | G185: 183.855 | H185: =300*1.05 -> 315

Sheet Title
C2: RECLAMATION COST ESTIMATING MODEL (Version 4.2)
D5: Prepared for:
A6: Water Resources Division
C7: Department of Indian Affairs and Northern Development (DIAND)
D9: Prepared by:
A10: Steffen Robertson and Kirsten (Canada) Inc. (SRK)
C11: M. John Brodie and Patrick J. Bryan | F11: Version 1.1 | G11: Lotus 123 | I11: April 1992
C12: R .C. Olauson and R.W. Chambers | F12: Version 2.1 | G12: Lotus 123 | I12: April 1994
A14: Brodie Consulting Ltd.
C15: M. John Brodie and Kitty Brodie | F15: Version 3.1 | G15: Quattro Pro | I15: November 1997
A17: Brodie Consulting Ltd.
C18: M. John Brodie and Kitty Brodie | F18: Version 4.0 | G18: Excel | I18: March 2001
F19: Version 4.2 | G19: Excel | I19: October 2001
A21: Brodie Consulting Ltd.
C22: M. John Brodie and Kitty Brodie | F22: Version 5.1 | G22: Excel | I22: 2005-08-01

Sheet Conditions
A2: CONDITIONS OF USE
A4: This Reclamation Cost Estimating Model was prepared to serve as a guide for Government Agencies, mining companies, and others to estimate the cost of mine reclamation. It is recognized that one model can not cover the full range of possibilities encountered during reclamation. It is expected, however, that this model is sufficiently comprehensive and flexible to provide the user with a forecasting tool to meet most reclamation situations. This model is not intended to replace reclamation planning or to be used to determine the activities required to reclaim a site or to dictate how much should be spent on reclamation.
A6: DIAND and Brodie Consulting are not responsible for the completeness or accuracy of any reclamation estimate made using this model. The user agrees to check and take responsibility for all aspects of any cost estimate made using this model.
A9: For program limitations, please see the worksheet titled "Limitations", which is the last worksheet in the program.

Sheet Limitations
A1: Certain Limitations must be followed in using the Reclaim Program as described below.
B2: The Reclaim Program will NOT work if the worksheets are changed such that these assumptions are no longer true.
A4: WorkSheet Names | B4: The names of the worksheets must not be changed. New worksheets can be inserted only if Workbook Protection is turned off using the default menu.
A5: Defined Names | B5: Certain ranges have defined names, which must not be changed. These names appear in the "Name Box" to the left of the formula bar.
A6: First line of data | B6: The first line of data for any component starts on line 4. Do not change the first 4 lines of a component worksheet, ie the name and column titles.
A7: Cell A1 | B7: Cell A1 on the component sheet MUST always contain the count of that component. This is programmatically controlled. DO NOT CHANGE.
A8: Column A | B8: This must have an entry in every row until the subtotal, for the calculation of where the subtotal is
A9: L,H, Spec | B9: The 3 fields to the right of this cell must not be touched. They are required, | C9: L
B10: to make the lookup function work in Unit Costs. | C10: H
C11: SPEC
A12: Printing | B12: A component will only be printed if its sub-total is greater than zero. In addition, a component and the summary sheet cannot be printed if there is an error.
